[Event "GrandPrix_29.05"]
[Site "Chess.com"]
[Date "2020.05.29"]
[Round "8"]
[White "sahidi"]
[Black "Glek_Igor"]
[Result "1/2-1/2"]
[WhiteElo "2168"]
[BlackElo "2460"]
[TimeControl "600+2"]
[EndTime "13:07:19 PDT"]
[Termination "Game drawn by repetition"]

1. d4 {[%clk 0:10:01.9]} 1... e6 {[%clk 0:09:56.7]} 2. Nf3 {[%clk 0:10:01]} 2...
f5 {[%clk 0:09:56.8]} 3. c4 {[%clk 0:09:57.1]} 3... Nf6 {[%clk 0:09:56.7]} 4.
Nc3 {[%clk 0:09:57.6]} 4... Bb4 {[%clk 0:09:57.1]} 5. Qc2 {[%clk 0:09:53.7]}
5... a5 {[%clk 0:09:50.7]} 6. g3 {[%clk 0:09:45.9]} 6... b6 {[%clk 0:09:51.1]}
7. Bg2 {[%clk 0:09:45.2]} 7... Bb7 {[%clk 0:09:52.6]} 8. O-O {[%clk 0:09:43.9]}
8... O-O {[%clk 0:09:48.5]} 9. b3 {[%clk 0:09:34]} 9... Ne4 {[%clk 0:09:13.3]}
10. Bb2 {[%clk 0:09:26.7]} 10... Bxc3 {[%clk 0:09:11.4]} 11. Bxc3 {[%clk
0:09:27.4]} 11... Nxc3 {[%clk 0:09:07.5]} 12. Qxc3 {[%clk 0:09:28]} 12... d6
{[%clk 0:08:58.9]} 13. c5 {[%clk 0:08:58.1]} 13... Bd5 {[%clk 0:08:54.5]} 14.
Rac1 {[%clk 0:08:53.4]} 14... Nc6 {[%clk 0:08:34]} 15. a3 {[%clk 0:08:37.1]}
15... bxc5 {[%clk 0:07:36.9]} 16. dxc5 {[%clk 0:08:37]} 16... Rb8 {[%clk
0:07:33.7]} 17. cxd6 {[%clk 0:08:29]} 17... Qxd6 {[%clk 0:07:13.8]} 18. Rfd1
{[%clk 0:08:23.8]} 18... Rb6 {[%clk 0:06:43.3]} 19. Ng5 {[%clk 0:08:06.5]} 19...
Qe7 {[%clk 0:05:35.9]} 20. h4 {[%clk 0:07:46.1]} 20... Bxg2 {[%clk 0:04:55]} 21.
Kxg2 {[%clk 0:07:37.8]} 21... h6 {[%clk 0:04:55.4]} 22. Nf3 {[%clk 0:07:36.7]}
22... e5 {[%clk 0:04:23.3]} 23. Rd5 {[%clk 0:07:01.7]} 23... e4 {[%clk
0:04:13.6]} 24. Ne5 {[%clk 0:06:58]} 24... Nxe5 {[%clk 0:03:18.2]} 25. Rxe5
{[%clk 0:06:51.1]} 25... Qxa3 {[%clk 0:03:06.1]} 26. Rxa5 {[%clk 0:06:23]} 26...
Qxb3 {[%clk 0:02:56.5]} 27. Qxb3+ {[%clk 0:06:12.3]} 27... Rxb3 {[%clk
0:02:56.8]} 28. Rxc7 {[%clk 0:06:12]} 28... Rb6 {[%clk 0:01:28.1]} 29. Rcc5
{[%clk 0:05:45.5]} 29... f4 {[%clk 0:01:20.1]} 30. Rf5 {[%clk 0:05:39.8]} 30...
Rbf6 {[%clk 0:01:12.7]} 31. Rxf4 {[%clk 0:04:59.8]} 31... Rxf4 {[%clk
0:01:12.2]} 32. gxf4 {[%clk 0:05:01.7]} 32... Rxf4 {[%clk 0:01:13.8]} 33. Kg3
{[%clk 0:04:52.4]} 33... Rf6 {[%clk 0:01:13]} 34. Re5 {[%clk 0:04:51.8]} 34...
Rg6+ {[%clk 0:01:09.2]} 35. Kf4 {[%clk 0:04:47.5]} 35... Rg2 {[%clk 0:00:57.4]}
36. Ke3 {[%clk 0:04:47.3]} 36... g5 {[%clk 0:00:50.8]} 37. hxg5 {[%clk
0:04:41.9]} 37... hxg5 {[%clk 0:00:51]} 38. Rxe4 {[%clk 0:04:41.7]} 38... g4
{[%clk 0:00:51.3]} 39. Rf4 {[%clk 0:03:58.2]} 39... Kg7 {[%clk 0:00:45.8]} 40.
f3 {[%clk 0:02:39.9]} 40... gxf3 {[%clk 0:00:44]} 41. Kxf3 {[%clk 0:02:38.4]}
41... Rh2 {[%clk 0:00:42.3]} 42. e3 {[%clk 0:02:31.3]} 42... Kg6 {[%clk
0:00:32.3]} 43. Ke4 {[%clk 0:02:31.1]} 43... Ra2 {[%clk 0:00:24.2]} 44. Rf3
{[%clk 0:02:23.4]} 44... Ra4+ {[%clk 0:00:20.9]} 45. Kd5 {[%clk 0:02:19.5]}
45... Ra5+ {[%clk 0:00:21.1]} 46. Kd4 {[%clk 0:02:08.5]} 46... Ra4+ {[%clk
0:00:19.2]} 47. Kc5 {[%clk 0:02:07.7]} 47... Ra5+ {[%clk 0:00:19.8]} 48. Kb4
{[%clk 0:02:06]} 48... Ra8 {[%clk 0:00:17.2]} 49. Kc4 {[%clk 0:01:59.8]} 49...
Rc8+ {[%clk 0:00:07.8]} 50. Kd3 {[%clk 0:01:56.7]} 50... Rd8+ {[%clk 0:00:06.3]}
51. Ke2 {[%clk 0:01:57.2]} 51... Ra8 {[%clk 0:00:07]} 52. Rf4 {[%clk 0:01:46.7]}
52... Kg5 {[%clk 0:00:05.8]} 53. Kf3 {[%clk 0:01:37.9]} 53... Ra5 {[%clk
0:00:06.8]} 54. Rc4 {[%clk 0:01:29.3]} 54... Kf5 {[%clk 0:00:05.6]} 55. Rh4
{[%clk 0:01:28]} 55... Ke6 {[%clk 0:00:06.2]} 56. Rh6+ {[%clk 0:01:25.2]} 56...
Ke7 {[%clk 0:00:06.5]} 57. Kf4 {[%clk 0:01:25.9]} 57... Kf7 {[%clk 0:00:07]} 58.
e4 {[%clk 0:01:25.9]} 58... Ke7 {[%clk 0:00:07.8]} 59. Rc6 {[%clk 0:01:17.5]}
59... Ra1 {[%clk 0:00:04.6]} 60. Kf5 {[%clk 0:01:15.6]} 60... Ra5+ {[%clk
0:00:03.5]} 61. e5 {[%clk 0:01:14.8]} 61... Ra3 {[%clk 0:00:04.3]} 62. Rc7+
{[%clk 0:01:13.4]} 62... Kd8 {[%clk 0:00:05.1]} 63. Rf7 {[%clk 0:01:12.6]} 63...
Ra6 {[%clk 0:00:05.4]} 64. Rf6 {[%clk 0:01:11]} 64... Ra1 {[%clk 0:00:04.9]} 65.
Ke6 {[%clk 0:01:10.1]} 65... Ke8 {[%clk 0:00:04.2]} 66. Rf3 {[%clk 0:01:01.6]}
66... Ra6+ {[%clk 0:00:04.2]} 67. Kf5 {[%clk 0:01:02.7]} 67... Ke7 {[%clk
0:00:05.3]} 68. Rc3 {[%clk 0:01:02.1]} 68... Ke8 {[%clk 0:00:05.7]} 69. Rc7
{[%clk 0:01:02.3]} 69... Kf8 {[%clk 0:00:06.1]} 70. Rh7 {[%clk 0:00:49.7]} 70...
Ke8 {[%clk 0:00:06.3]} 71. Rg7 {[%clk 0:00:45.7]} 71... Kf8 {[%clk 0:00:06.8]}
72. Rd7 {[%clk 0:00:45.4]} 72... Ke8 {[%clk 0:00:07.1]} 73. Rd4 {[%clk
0:00:41.5]} 73... Ke7 {[%clk 0:00:07]} 74. Rg4 {[%clk 0:00:42.1]} 74... Ke8
{[%clk 0:00:07.6]} 75. Rg7 {[%clk 0:00:41.9]} 75... Kf8 {[%clk 0:00:08]} 76. Rh7
{[%clk 0:00:42.9]} 76... Ke8 {[%clk 0:00:08.8]} 77. Rc7 {[%clk 0:00:39.1]} 77...
Kf8 {[%clk 0:00:09.6]} 78. Ke4 {[%clk 0:00:37.4]} 78... Ke8 {[%clk 0:00:08.7]}
79. Kd5 {[%clk 0:00:38.4]} 79... Kd8 {[%clk 0:00:09.2]} 80. Rh7 {[%clk
0:00:35.4]} 80... Ke8 {[%clk 0:00:09.6]} 81. Rg7 {[%clk 0:00:36.4]} 81... Kd8
{[%clk 0:00:09.9]} 82. Rh7 {[%clk 0:00:29.3]} 82... Ke8 {[%clk 0:00:09.6]} 83.
Rh8+ {[%clk 0:00:22.2]} 83... Ke7 {[%clk 0:00:10.2]} 84. Rh7+ {[%clk 0:00:17.9]}
84... Ke8 {[%clk 0:00:11]} 1/2-1/2

[Event "GrandPrix_29.05"]
[Site "Chess.com"]
[Date "2020.05.29"]
[Round "8"]
[White "Vesper2018"]
[Black "fujiwara_hoga"]
[Result "1/2-1/2"]
[WhiteElo "1922"]
[BlackElo "2123"]
[TimeControl "600+2"]
[EndTime "13:07:29 PDT"]
[Termination "Game drawn by repetition"]

1. e4 {[%clk 0:09:51.2]} 1... e5 {[%clk 0:09:43.1]} 2. Nf3 {[%clk 0:09:40.6]}
2... Nc6 {[%clk 0:09:43.2]} 3. Bb5 {[%clk 0:09:40.3]} 3... a6 {[%clk 0:09:39.3]}
4. Ba4 {[%clk 0:09:37]} 4... Nf6 {[%clk 0:09:37.9]} 5. O-O {[%clk 0:09:37.4]}
5... Be7 {[%clk 0:09:37.5]} 6. Re1 {[%clk 0:09:37.9]} 6... b5 {[%clk 0:09:37.2]}
7. Bb3 {[%clk 0:09:37.2]} 7... d6 {[%clk 0:09:37.9]} 8. c3 {[%clk 0:09:37.9]}
8... O-O {[%clk 0:09:37.7]} 9. h3 {[%clk 0:09:38.2]} 9... Na5 {[%clk 0:09:37.4]}
10. Bc2 {[%clk 0:09:39.2]} 10... c5 {[%clk 0:09:36.9]} 11. d4 {[%clk 0:09:40.1]}
11... Qc7 {[%clk 0:09:37.1]} 12. d5 {[%clk 0:09:38.7]} 12... Bd7 {[%clk
0:09:35.4]} 13. b3 {[%clk 0:09:37.7]} 13... Nb7 {[%clk 0:09:28.2]} 14. Nbd2
{[%clk 0:09:31.1]} 14... g6 {[%clk 0:09:20.2]} 15. Nf1 {[%clk 0:09:30.3]} 15...
Nh5 {[%clk 0:09:17.1]} 16. Bh6 {[%clk 0:09:21.3]} 16... Ng7 {[%clk 0:09:17.5]}
17. g4 {[%clk 0:09:18.5]} 17... Nd8 {[%clk 0:09:11.2]} 18. Ng3 {[%clk
0:09:15.2]} 18... f6 {[%clk 0:09:10.8]} 19. Qd2 {[%clk 0:09:15]} 19... Nf7
{[%clk 0:09:09.9]} 20. Be3 {[%clk 0:09:04.7]} 20... Kh8 {[%clk 0:09:09.1]} 21.
Nh2 {[%clk 0:08:23.8]} 21... Rg8 {[%clk 0:09:06.2]} 22. h4 {[%clk 0:08:18.6]}
22... f5 {[%clk 0:08:45.7]} 23. exf5 {[%clk 0:07:57.3]} 23... gxf5 {[%clk
0:08:45]} 24. Bh6 {[%clk 0:07:46.2]} 24... Bxh4 {[%clk 0:07:44.3]} 25. Bxg7+
{[%clk 0:07:34]} 25... Rxg7 {[%clk 0:07:41]} 26. Nxf5 {[%clk 0:07:34.9]} 26...
Bxf5 {[%clk 0:07:25.8]} 27. Bxf5 {[%clk 0:07:35.6]} 27... Bg5 {[%clk 0:07:10.2]}
28. Qd3 {[%clk 0:07:35.2]} 28... Qe7 {[%clk 0:07:03.7]} 29. f3 {[%clk
0:06:42.5]} 29... Bf4 {[%clk 0:06:45.2]} 30. Re2 {[%clk 0:06:23.9]} 30... Qh4
{[%clk 0:06:37.9]} 31. Kh1 {[%clk 0:06:05.5]} 31... Ng5 {[%clk 0:06:29.2]} 32.
Rg2 {[%clk 0:05:55.5]} 32... Nh3 {[%clk 0:06:06.1]} 33. Qe2 {[%clk 0:05:45.3]}
33... Bg3 {[%clk 0:05:39.9]} 34. a4 {[%clk 0:05:32]} 34... Nf4 {[%clk 0:05:18]}
35. Qf1 {[%clk 0:05:28.1]} 35... Nxg2 {[%clk 0:05:02.1]} 36. Qxg2 {[%clk
0:05:28.6]} 36... bxa4 {[%clk 0:04:49.4]} 37. Rxa4 {[%clk 0:05:23.6]} 37... Bxh2
{[%clk 0:04:44.8]} 38. Qxh2 {[%clk 0:05:22.5]} 38... Qe1+ {[%clk 0:04:39.5]} 39.
Kg2 {[%clk 0:05:18.6]} 39... Qd2+ {[%clk 0:04:07.3]} 40. Kg3 {[%clk 0:05:15.4]}
40... Qe1+ {[%clk 0:03:10.5]} 41. Kg2 {[%clk 0:05:08]} 41... Qe2+ {[%clk
0:03:10.4]} 42. Kg3 {[%clk 0:05:08.8]} 42... Qxh2+ {[%clk 0:03:10.7]} 43. Kxh2
{[%clk 0:05:09.6]} 43... Rb7 {[%clk 0:03:07.5]} 44. Bc2 {[%clk 0:05:04.3]} 44...
Rb6 {[%clk 0:03:07.7]} 45. Kg3 {[%clk 0:04:21.9]} 45... Kg7 {[%clk 0:03:06.6]}
46. g5 {[%clk 0:04:19.9]} 46... Rf8 {[%clk 0:02:43]} 47. Rh4 {[%clk 0:04:17.9]}
47... Kg8 {[%clk 0:02:00]} 48. Bxh7+ {[%clk 0:04:14.1]} 48... Kg7 {[%clk
0:02:00]} 49. Bc2 {[%clk 0:04:11.4]} 49... Rh8 {[%clk 0:02:00]} 50. Re4 {[%clk
0:03:42.9]} 50... Rh1 {[%clk 0:01:52.9]} 51. f4 {[%clk 0:03:42.8]} 51... Rc1
{[%clk 0:01:44.8]} 52. Re2 {[%clk 0:03:39.4]} 52... exf4+ {[%clk 0:01:21.4]} 53.
Kxf4 {[%clk 0:03:38.8]} 53... c4 {[%clk 0:01:21.5]} 54. b4 {[%clk 0:03:06.9]}
54... Rb7 {[%clk 0:01:07]} 55. g6 {[%clk 0:03:00.9]} 55... Rf1+ {[%clk
0:00:45.2]} 56. Kg5 {[%clk 0:02:57.5]} 56... Rg1+ {[%clk 0:00:44.9]} 57. Kf4
{[%clk 0:02:54.8]} 57... Rf1+ {[%clk 0:00:45]} 58. Kg5 {[%clk 0:02:41.7]} 58...
Rf3 {[%clk 0:00:40.3]} 59. Rh2 {[%clk 0:02:29.6]} 59... Kg8 {[%clk 0:00:39.9]}
60. Bf5 {[%clk 0:02:26.5]} 60... Rxf5+ {[%clk 0:00:24.4]} 61. Kxf5 {[%clk
0:02:27.6]} 61... Re7 {[%clk 0:00:25.6]} 62. Kf6 {[%clk 0:02:22.6]} 62... Re3
{[%clk 0:00:23.1]} 63. g7 {[%clk 0:01:46.6]} 63... Rf3+ {[%clk 0:00:23.4]} 64.
Ke6 {[%clk 0:01:48]} 64... Rxc3 {[%clk 0:00:24.6]} 65. Kxd6 {[%clk 0:01:49.2]}
65... Rd3 {[%clk 0:00:15.3]} 66. Kc6 {[%clk 0:01:16.9]} 66... c3 {[%clk
0:00:15.5]} 67. d6 {[%clk 0:01:16.3]} 67... Rd2 {[%clk 0:00:14.7]} 68. Rh3
{[%clk 0:00:41.6]} 68... c2 {[%clk 0:00:15.1]} 69. Rc3 {[%clk 0:00:42.2]} 69...
Kxg7 {[%clk 0:00:15.8]} 70. d7 {[%clk 0:00:43.4]} 70... Kf7 {[%clk 0:00:16.1]}
71. Kb6 {[%clk 0:00:12.9]} 71... Ke7 {[%clk 0:00:14.7]} 72. Kxa6 {[%clk
0:00:12.5]} 72... Kxd7 {[%clk 0:00:15.7]} 73. b5 {[%clk 0:00:12.9]} 73... Rd6+
{[%clk 0:00:12.7]} 74. Ka7 {[%clk 0:00:09.5]} 74... Rd5 {[%clk 0:00:10.1]} 75.
b6 {[%clk 0:00:09.9]} 75... Ra5+ {[%clk 0:00:10.8]} 76. Kb8 {[%clk 0:00:11.3]}
76... Ra2 {[%clk 0:00:11.1]} 77. b7 {[%clk 0:00:11.2]} 77... Kd8 {[%clk
0:00:12]} 78. Rc4 {[%clk 0:00:09.4]} 78... Kd7 {[%clk 0:00:12.2]} 79. Rd4+
{[%clk 0:00:08.7]} 79... Ke7 {[%clk 0:00:12.7]} 80. Rc4 {[%clk 0:00:08.7]} 80...
Kd7 {[%clk 0:00:13.8]} 81. Rc7+ {[%clk 0:00:08.5]} 81... Kd8 {[%clk 0:00:13.1]}
82. Rc5 {[%clk 0:00:04.8]} 82... Kd7 {[%clk 0:00:13.2]} 83. Rc4 {[%clk
0:00:04.5]} 83... Kd8 {[%clk 0:00:13.7]} 84. Rc5 {[%clk 0:00:02.9]} 84... Kd7
{[%clk 0:00:14.6]} 85. Rc3 {[%clk 0:00:04.3]} 85... Kd8 {[%clk 0:00:14.9]} 86.
Rc5 {[%clk 0:00:05.4]} 1/2-1/2

[Event "GrandPrix_29.05"]
[Site "Chess.com"]
[Date "2020.05.29"]
[Round "8"]
[White "chess_big_master"]
[Black "troisi"]
[Result "1-0"]
[WhiteElo "2019"]
[BlackElo "1561"]
[TimeControl "600+2"]
[EndTime "13:08:35 PDT"]
[Termination "chess_big_master won by checkmate"]

1. d4 {[%clk 0:10:01.9]} 1... Nf6 {[%clk 0:09:50.4]} 2. Nf3 {[%clk 0:10:02.5]}
2... e6 {[%clk 0:09:51.1]} 3. c4 {[%clk 0:10:02.9]} 3... d5 {[%clk 0:09:51.1]}
4. Nc3 {[%clk 0:10:03.2]} 4... a6 {[%clk 0:09:51.3]} 5. cxd5 {[%clk 0:09:58.6]}
5... exd5 {[%clk 0:09:50.9]} 6. Bg5 {[%clk 0:09:58]} 6... Be6 {[%clk 0:09:45.5]}
7. e3 {[%clk 0:09:54.1]} 7... Nbd7 {[%clk 0:09:46]} 8. Bd3 {[%clk 0:09:53.8]}
8... Bd6 {[%clk 0:09:47]} 9. O-O {[%clk 0:09:52.9]} 9... h6 {[%clk 0:09:48.2]}
10. Bh4 {[%clk 0:09:53.5]} 10... O-O {[%clk 0:09:49.1]} 11. Rc1 {[%clk
0:09:31.5]} 11... b5 {[%clk 0:09:49.5]} 12. e4 {[%clk 0:09:27.1]} 12... dxe4
{[%clk 0:09:44.6]} 13. Nxe4 {[%clk 0:09:26.9]} 13... Be7 {[%clk 0:09:45.2]} 14.
Nc5 {[%clk 0:09:25.6]} 14... Nxc5 {[%clk 0:09:44.2]} 15. dxc5 {[%clk 0:09:26.3]}
15... Qd5 {[%clk 0:09:44.7]} 16. Bb1 {[%clk 0:09:14.4]} 16... Rad8 {[%clk
0:09:42.9]} 17. Qc2 {[%clk 0:09:12.4]} 17... g6 {[%clk 0:09:41.6]} 18. Qc3
{[%clk 0:08:43.7]} 18... g5 {[%clk 0:09:15.8]} 19. Bg3 {[%clk 0:08:44]} 19...
Ne4 {[%clk 0:08:43.7]} 20. Bxe4 {[%clk 0:08:26.7]} 20... Qxe4 {[%clk 0:08:44.6]}
21. Bxc7 {[%clk 0:08:27.1]} 21... Rc8 {[%clk 0:08:43.9]} 22. Bb6 {[%clk
0:08:26]} 22... b4 {[%clk 0:07:56.8]} 23. Qd4 {[%clk 0:08:02.7]} 23... Qxd4
{[%clk 0:07:49.4]} 24. Nxd4 {[%clk 0:08:02.6]} 24... Bxa2 {[%clk 0:07:49.8]} 25.
Nf5 {[%clk 0:07:47.4]} 25... Bf6 {[%clk 0:07:46.4]} 26. c6 {[%clk 0:07:39.1]}
26... Be6 {[%clk 0:07:10.5]} 27. Nd6 {[%clk 0:07:38.1]} 27... Rb8 {[%clk
0:07:11.5]} 28. Bc5 {[%clk 0:07:11.6]} 28... Bxb2 {[%clk 0:07:08.2]} 29. c7
{[%clk 0:07:02.5]} 29... Bxc1 {[%clk 0:05:42.4]} 30. cxb8=Q {[%clk 0:06:58.7]}
30... Rxb8 {[%clk 0:05:44.3]} 31. Rxc1 {[%clk 0:06:58.8]} 31... b3 {[%clk
0:05:44.2]} 32. Ba3 {[%clk 0:06:49.2]} 32... a5 {[%clk 0:05:31.8]} 33. Kf1
{[%clk 0:06:38.1]} 33... a4 {[%clk 0:05:18.1]} 34. Rb1 {[%clk 0:06:32]} 34...
Rb6 {[%clk 0:05:06.5]} 35. Ke2 {[%clk 0:06:06.9]} 35... Rc6 {[%clk 0:05:06.3]}
36. Ke3 {[%clk 0:05:13.5]} 36... Rc2 {[%clk 0:04:55.8]} 37. Rb2 {[%clk 0:05:09]}
37... Rc6 {[%clk 0:03:50]} 38. Kd4 {[%clk 0:04:47.8]} 38... Kh7 {[%clk
0:03:50.1]} 39. Ne4 {[%clk 0:04:22]} 39... Bf5 {[%clk 0:03:18.4]} 40. f3 {[%clk
0:04:05.1]} 40... Kg6 {[%clk 0:02:59.1]} 41. g4 {[%clk 0:03:55.8]} 41... Bc8
{[%clk 0:02:21]} 42. Nc5 {[%clk 0:03:49]} 42... f5 {[%clk 0:01:18.3]} 43. h3
{[%clk 0:03:11.8]} 43... h5 {[%clk 0:01:15.3]} 44. gxh5+ {[%clk 0:02:17.6]}
44... Kxh5 {[%clk 0:01:17.2]} 45. Rg2 {[%clk 0:02:05]} 45... Kh4 {[%clk
0:00:49.3]} 46. Nd3 {[%clk 0:01:44.9]} 46... Rg6 {[%clk 0:00:23.4]} 47. Ne5
{[%clk 0:01:00.3]} 47... Rg7 {[%clk 0:00:24.1]} 48. Bf8 {[%clk 0:00:50.2]} 48...
Rh7 {[%clk 0:00:24.1]} 49. Ng6+ {[%clk 0:00:43.2]} 49... Kxh3 {[%clk 0:00:22.9]}
50. Rxg5 {[%clk 0:00:44.2]} 50... b2 {[%clk 0:00:21.6]} 51. Nf4+ {[%clk
0:00:43.1]} 51... Kh2 {[%clk 0:00:19.8]} 52. Rg2+ {[%clk 0:00:43.6]} 52... Kh1
{[%clk 0:00:20]} 53. Rxb2 {[%clk 0:00:42.9]} 53... Rd7+ {[%clk 0:00:19.1]} 54.
Ke3 {[%clk 0:00:43.4]} 54... a3 {[%clk 0:00:18.5]} 55. Bxa3 {[%clk 0:00:42.8]}
55... Rb7 {[%clk 0:00:19.2]} 56. Rc2 {[%clk 0:00:40.4]} 56... Bd7 {[%clk
0:00:18.6]} 57. Kf2 {[%clk 0:00:39.3]} 57... Rb3 {[%clk 0:00:16.1]} 58. Bd6
{[%clk 0:00:39.9]} 58... Rb1 {[%clk 0:00:13.8]} 59. Ne2 {[%clk 0:00:35.9]} 59...
Bb5 {[%clk 0:00:12.6]} 60. Ng3+ {[%clk 0:00:36.3]} 60... Kh2 {[%clk 0:00:13.1]}
61. Nxf5+ {[%clk 0:00:36.9]} 61... Kh3 {[%clk 0:00:14.6]} 62. Ne3 {[%clk
0:00:37.1]} 62... Bd3 {[%clk 0:00:15.3]} 63. Rd2 {[%clk 0:00:37.6]} 63... Bb5
{[%clk 0:00:15.6]} 64. f4 {[%clk 0:00:38.5]} 64... Kh4 {[%clk 0:00:17]} 65. Be7+
{[%clk 0:00:36.3]} 65... Kh5 {[%clk 0:00:17.9]} 66. Bg5 {[%clk 0:00:36.7]} 66...
Kg6 {[%clk 0:00:19.2]} 67. Rd6+ {[%clk 0:00:36.9]} 67... Kf7 {[%clk 0:00:19.7]}
68. Kf3 {[%clk 0:00:37.8]} 68... Rc1 {[%clk 0:00:21.1]} 69. f5 {[%clk
0:00:37.5]} 69... Bc6+ {[%clk 0:00:21.8]} 70. Kf4 {[%clk 0:00:38.7]} 70... Bb5
{[%clk 0:00:23.4]} 71. Ke5 {[%clk 0:00:37]} 71... Rc5+ {[%clk 0:00:24.3]} 72.
Rd5 {[%clk 0:00:36.9]} 72... Rxd5+ {[%clk 0:00:24.6]} 73. Nxd5 {[%clk
0:00:37.6]} 73... Bd7 {[%clk 0:00:25.7]} 74. f6 {[%clk 0:00:35.4]} 74... Kg6
{[%clk 0:00:26.9]} 75. Bd2 {[%clk 0:00:36.1]} 75... Kf7 {[%clk 0:00:26.2]} 76.
Bc3 {[%clk 0:00:35.5]} 76... Ba4 {[%clk 0:00:27.1]} 77. Ne3 {[%clk 0:00:35.2]}
77... Bb3 {[%clk 0:00:28.4]} 78. Nf5 {[%clk 0:00:36]} 78... Kg6 {[%clk
0:00:28.5]} 79. Nd6 {[%clk 0:00:36.3]} 79... Kh7 {[%clk 0:00:28]} 80. f7 {[%clk
0:00:31.2]} 80... Kg7 {[%clk 0:00:25.5]} 81. Kf5+ {[%clk 0:00:32.1]} 81... Kf8
{[%clk 0:00:26.1]} 82. Kg6 {[%clk 0:00:24.7]} 82... Bc2+ {[%clk 0:00:20.2]} 83.
Kf6 {[%clk 0:00:24.5]} 83... Bb3 {[%clk 0:00:20.8]} 84. Bd2 {[%clk 0:00:21.1]}
84... Bxf7 {[%clk 0:00:20.2]} 85. Nxf7 {[%clk 0:00:19.5]} 85... Ke8 {[%clk
0:00:21.7]} 86. Ke6 {[%clk 0:00:20]} 86... Kf8 {[%clk 0:00:22.8]} 87. Bc3 {[%clk
0:00:17.3]} 87... Ke8 {[%clk 0:00:24.7]} 88. Bd4 {[%clk 0:00:11.1]} 88... Kf8
{[%clk 0:00:25.9]} 89. Bc5+ {[%clk 0:00:09.4]} 89... Ke8 {[%clk 0:00:27.8]} 90.
Bd4 {[%clk 0:00:09.8]} 90... Kf8 {[%clk 0:00:29.1]} 91. Bf6 {[%clk 0:00:10.6]}
91... Ke8 {[%clk 0:00:31]} 92. Be5 {[%clk 0:00:11]} 92... Kf8 {[%clk 0:00:32.9]}
93. Bd6+ {[%clk 0:00:11.9]} 93... Ke8 {[%clk 0:00:34.8]} 94. Bf4 {[%clk
0:00:12.1]} 94... Kf8 {[%clk 0:00:35.6]} 95. Bc7 {[%clk 0:00:11.5]} 95... Ke8
{[%clk 0:00:36.7]} 96. Ne5 {[%clk 0:00:12.1]} 96... Kf8 {[%clk 0:00:37.7]} 97.
Kf6 {[%clk 0:00:11.9]} 97... Ke8 {[%clk 0:00:39.1]} 98. Ba5 {[%clk 0:00:11.9]}
98... Kf8 {[%clk 0:00:40.2]} 99. Ke6 {[%clk 0:00:07]} 99... Ke8 {[%clk
0:00:42.1]} 100. Nf7 {[%clk 0:00:05.8]} 100... Kf8 {[%clk 0:00:39.6]} 101. Ng5
{[%clk 0:00:05.7]} 101... Ke8 {[%clk 0:00:41.5]} 102. Ne4 {[%clk 0:00:06.5]}
102... Kf8 {[%clk 0:00:42.9]} 103. Nf6 {[%clk 0:00:07.2]} 103... Kg7 {[%clk
0:00:43.1]} 104. Bb4 {[%clk 0:00:06.5]} 104... Kg6 {[%clk 0:00:44.3]} 105. Bd2
{[%clk 0:00:07.4]} 105... Kg7 {[%clk 0:00:45.2]} 106. Nd5 {[%clk 0:00:08.5]}
106... Kf8 {[%clk 0:00:45.9]} 107. Ne7 {[%clk 0:00:09.3]} 107... Ke8 {[%clk
0:00:47.8]} 108. Ba5 {[%clk 0:00:09]} 108... Kf8 {[%clk 0:00:49.2]} 109. Nf5
{[%clk 0:00:09.8]} 109... Ke8 {[%clk 0:00:51.1]} 110. Ng7+ {[%clk 0:00:10.9]}
110... Kf8 {[%clk 0:00:52.1]} 111. Kf6 {[%clk 0:00:12.3]} 111... Kg8 {[%clk
0:00:53]} 112. Kg6 {[%clk 0:00:13.5]} 112... Kf8 {[%clk 0:00:54.2]} 113. Bb4+
{[%clk 0:00:14.8]} 113... Kg8 {[%clk 0:00:55.6]} 114. Nf5 {[%clk 0:00:14.8]}
114... Kh8 {[%clk 0:00:56.4]} 115. Ba3 {[%clk 0:00:15.3]} 115... Kg8 {[%clk
0:00:57.8]} 116. Nh6+ {[%clk 0:00:16.1]} 116... Kh8 {[%clk 0:00:59.2]} 117. Bb2#
{[%clk 0:00:17.1]} 1-0